bitfinex-derivatives/quotes_ETHF0:USTF0_20250908
["timestamp","ask_amount","ask_price","bid_price","bid_amount"]
[1757336819366,0.426,4349.5,4348.7,3.2078]
[1757336819578,0.25,4349.4,4348.7,3.2078]
[1757336819762,0.5575,4349.3,4348.7,3.2078]
[1757336820077,0.3075,4348.9,4348.1,3.5225]
[1757336820269,0.25,4348.9,4348.6,3.2078]
[1757336820571,0.25,4349.0,4348.1,0.3147]
[1757336820772,0.25,4349.0,4346.5,0.1259]
[1757336820773,3.2078,4348.4,4347.5,0.4406]
[1757336821073,3.2078,4348.4,4348.1,0.3147]
[1757336821269,0.25,4348.6,4348.4,0.3147]
[1757336821572,3.2078,4349.4,4348.4,0.3147]
[1757336821573,3.2078,4349.4,4348.5,0.1259]
[1757336821876,28.2078,4350.0,4349.6,0.3147]
[1757336822269,25.0,4350.0,4349.6,0.3147]
[1757336823070,24.6763,4350.0,4349.7,4.0]
[1757336823267,9.18276499,4350.0,4349.8,0.66382]
[1757336823873,9.18276499,4350.0,4349.9,4.0]
[1757336824173,0.1185,4351.5,4350.5,0.41375]
[1757336824479,0.1185,4351.5,4349.6,0.3147]
[1757336824480,3.2078,4350.6,4349.6,0.3147]
[1757336824678,3.2078,4350.1,4349.1,0.3147]
[1757336824976,3.2078,4349.6,4349.0,0.4406]
[1757336825166,3.2078,4349.6,4349.0,0.1259]
[1757336825363,0.252,4350.0,4349.6,0.3136]
[1757336825568,33.144,4351.4,4349.6,0.3136]
[1757336825569,3.758,4350.1,4349.6,0.3136]
[1757336825767,0.252,4350.0,4349.6,0.3136]
[1757336825969,0.252,4350.0,4349.5,0.1268]
[1757336826580,0.252,4349.9,4349.5,0.1268]
[1757336826885,0.252,4349.8,4349.5,0.1268]
[1757336827081,3.2078,4350.6,4349.5,0.1268]
[1757336827082,3.2078,4350.6,4349.6,0.3136]
[1757336827481,0.251,4350.5,4349.9,3.2078]
[1757336827969,3.2078,4350.1,4348.7,0.3136]
[1757336828278,0.3777,4350.5,4348.7,0.3136]
[1757336828279,3.2078,4349.5,4348.7,0.3136]
[1757336828477,0.252,4349.4,4348.7,0.3136]
[1757336828678,3.2078,4349.5,4348.7,0.3136]
[1757336828878,0.252,4349.4,4348.7,0.3136]
[1757336829076,0.7814099,4349.4,4348.7,0.3136]
[1757336829271,0.53075995,4349.3,4348.7,0.3136]
[1757336829572,0.02805166,4349.0,4348.5,3.3066]
[1757336829776,0.02805166,4349.0,4347.8,3.2078]
[1757336829974,3.2078,4348.8,4347.8,3.2078]
[1757336830175,0.02805166,4349.0,4348.5,3.2078]
[1757336830379,0.02805166,4349.0,4348.5,3.3346]
[1757336830580,0.02805166,4348.8,4348.5,3.3346]
[1757336831376,0.02805166,4348.8,4348.6,4.0]
[1757336831572,1.50824933,4350.3,4348.8,0.3136]
[1757336831880,0.2992,4350.3,4349.5,0.1268]
[1757336832080,0.252,4350.4,4349.8,3.2078]
[1757336832378,0.2992,4350.1,4349.8,3.2078]
[1757336832571,0.60614144,4349.9,4349.8,3.5214]
[1757336832975,1.6600264,4350.9,4349.8,7.2078]
[1757336833180,3.2078,4351.3,4350.5,0.1268]
[1757336833380,0.253,4351.2,4350.5,0.1268]
[1757336833581,0.253,4351.2,4350.4,0.3136]
[1757336833778,3.2078,4351.3,4350.6,0.3136]
[1757336833973,3.2078,4351.3,4351.1,0.3136]
[1757336834182,0.253,4351.2,4351.1,0.3136]
[1757336834377,0.253,4351.2,4350.6,0.3136]
[1757336834574,3.2078,4351.3,4350.6,0.3136]
[1757336834878,0.253,4351.2,4350.6,0.3136]
[1757336835088,3.2078,4351.3,4350.6,0.3136]
[1757336835383,1.6600264,4351.8,4351.2,0.3136]
[1757336835577,3.2078,4353.1,4352.1,0.3136]
[1757336835578,2.0595015,4353.0,4352.1,0.3136]
[1757336835877,2.0595015,4353.0,4352.0,0.1268]
[1757336835878,2.2285015,4353.0,4352.0,0.1268]
[1757336836276,2.1780015,4353.0,4351.9,0.3136]
[1757336836477,0.169,4352.9,4351.9,0.3136]
[1757336836772,0.169,4352.7,4351.6,3.2078]
[1757336836971,0.255,4352.6,4351.6,3.5214]
[1757336837183,0.254,4352.5,4352.1,3.2078]
[1757336837372,0.254,4352.5,4352.2,0.3136]
[1757336837576,0.169,4352.5,4352.0,0.1268]
[1757336837777,3.2078,4352.4,4351.0,3.2078]
[1757336838085,0.169,4351.6,4351.0,3.2078]
[1757336838277,0.255,4351.5,4351.0,3.2078]
[1757336838479,0.255,4351.4,4351.1,0.3136]
[1757336838779,0.169,4351.3,4351.0,3.2078]
[1757336838978,0.424,4351.4,4350.6,0.3136]
[1757336839773,0.254,4351.3,4351.0,0.4404]
[1757336839978,0.169,4352.1,4351.1,0.3136]
[1757336840177,0.254,4352.0,4351.4,3.2078]
[1757336840784,4.0,4351.9,4351.4,3.2078]
[1757336840985,4.0,4351.9,4351.4,3.0385]
[1757336841178,3.2078,4351.5,4350.2,3.2078]
[1757336841378,3.2078,4350.8,4350.2,3.2078]
[1757336841578,0.76975995,4350.7,4350.2,3.2078]
[1757336841778,0.254,4350.6,4350.2,3.2078]
[1757336842186,4.0,4350.5,4350.2,3.2078]
[1757336842387,4.0,4350.5,4349.7,3.2078]
[1757336842579,0.254,4350.6,4349.7,3.2078]
[1757336842780,4.4338372,4352.0,4348.8,0.3136]
[1757336842781,1.6600264,4349.9,4348.8,0.3136]
[1757336842984,33.125,4350.0,4349.0,0.1268]
[1757336843281,0.255,4351.0,4350.5,0.1268]
[1757336843480,3.2078,4351.5,4350.7,3.2078]
[1757336843481,0.255,4350.9,4350.7,3.2078]
[1757336843684,3.2078,4351.5,4350.8,0.3136]
[1757336844078,0.255,4351.4,4350.8,0.3136]
[1757336844278,3.2078,4351.5,4350.8,0.3136]
[1757336844480,0.255,4351.4,4350.8,0.3136]
[1757336844678,3.2078,4351.5,4351.1,0.3136]
[1757336844884,0.255,4351.4,4351.1,0.3136]
[1757336845080,3.2078,4351.2,4350.5,0.4404]
[1757336845380,0.255,4351.4,4350.5,0.4404]
[1757336846585,0.255,4351.4,4351.1,3.2078]
[1757336846792,0.255,4351.3,4351.2,0.3136]
[1757336847093,3.2078,4351.9,4351.2,0.3136]
[1757336847289,0.255,4351.8,4351.2,0.3136]
[1757336847487,3.2078,4351.9,4351.2,0.3136]
[1757336847688,19.2,4352.2,4351.6,0.3136]
[1757336847689,0.255,4351.7,4351.6,0.3136]
[1757336847989,0.254,4351.7,4351.6,0.3136]
[1757336848689,3.2078,4352.5,4351.6,0.3136]
[1757336848892,3.2078,4353.1,4351.7,0.3136]
[1757336849090,0.254,4353.0,4352.5,0.1268]
[1757336849488,0.254,4353.0,4352.6,0.3136]
[1757336849894,0.254,4353.0,4352.5,0.1268]
[1757336850295,3.2078,4352.6,4351.5,0.1268]
[1757336850496,0.254,4352.5,4351.6,0.3136]
[1757336850793,2.30669211,4352.6,4351.6,0.3136]
[1757336851098,0.254,4352.5,4351.8,3.2078]
[1757336852497,3.2078,4352.0,4350.9,0.3136]
[1757336852699,1.2339602,4351.4,4351.1,0.3136]
[1757336852993,1.2339602,4351.4,4350.8,3.2078]
[1757336853205,0.255,4351.3,4351.1,0.3136]
[1757336853491,0.255,4351.3,4350.8,3.2078]
[1757336853692,1.99169096,4351.3,4350.8,3.2078]
[1757336853891,0.255,4351.2,4350.8,3.5214]
[1757336854300,3.2078,4351.1,4350.5,0.1268]
[1757336854595,0.0918,4351.0,4350.3,0.3136]
[1757336854991,0.0918,4351.0,4350.1,3.2078]
[1757336855491,3.2078,4350.5,4349.9,0.3136]
[1757336855691,0.0911,4350.3,4349.6,3.2078]
[1757336855896,0.255,4350.4,4349.3,0.5615]
[1757336855897,3.2078,4350.0,4349.3,0.5615]
[1757336856198,0.255,4349.9,4349.3,0.5615]
[1757336856498,0.0911,4349.8,4349.0,3.3346]
[1757336856700,0.254,4349.7,4349.1,0.5615]
[1757336856910,0.254,4349.6,4349.1,0.5615]
[1757336857092,3.2078,4349.5,4348.3,3.2078]
[1757336857293,3.2078,4349.0,4348.3,3.2078]
[1757336857592,0.3451,4348.9,4348.3,3.2078]
[1757336858797,0.3451,4348.9,4348.1,0.5615]
[1757336858992,0.3451,4348.9,4347.8,3.2078]
[1757336858993,0.0911,4348.8,4347.8,3.2078]
[1757336859296,36.3298,4349.0,4348.1,0.5615]
[1757336859492,36.3298,4349.0,4348.6,0.5615]
[1757336859493,33.122,4349.0,4348.6,0.5615]
[1757336859893,0.254,4348.9,4348.6,0.5615]
[1757336860099,0.254,4348.8,4348.6,0.5615]
[1757336861295,32.22089211,4349.0,4348.6,0.5615]
[1757336861593,0.254,4349.2,4349.1,0.5615]
[1757336861800,0.254,4349.2,4349.1,3.7693]
[1757336861990,0.254,4349.2,4349.1,7.7693]
[1757336862393,0.254,4349.6,4349.5,0.2265]
[1757336862692,33.129,4350.5,4349.6,0.5615]
[1757336862894,0.254,4350.4,4349.6,3.2078]
[1757336863095,0.254,4350.3,4349.7,0.5615]
[1757336863789,0.3451,4350.2,4349.0,0.788]
[1757336863997,0.3451,4350.0,4349.0,0.788]
[1757336864192,0.254,4349.9,4349.0,0.788]
[1757336864396,0.254,4349.8,4349.0,0.788]
[1757336865993,32.57299211,4350.5,4349.5,0.2265]
[1757336866304,0.75058996,4350.4,4349.6,0.5615]
[1757336866500,0.253,4350.4,4349.6,0.5615]
[1757336867096,32.57299211,4350.5,4349.6,0.5615]
[1757336867295,0.253,4350.4,4349.6,0.5615]
[1757336867496,0.3451,4350.3,4349.6,0.5615]
[1757336868295,32.22789211,4350.5,4349.6,0.5615]
[1757336868503,0.253,4350.4,4349.6,0.5615]
[1757336868695,0.253,4350.4,4350.0,0.2265]
[1757336868898,32.22789211,4350.5,4350.1,0.5615]
[1757336869197,0.253,4350.4,4350.1,0.5615]
[1757336869703,0.253,4350.4,4350.0,0.2265]
[1757336870904,0.5981,4350.4,4350.1,0.5615]
[1757336871412,0.5981,4350.4,4349.9,3.2078]
[1757336871413,0.253,4350.4,4349.9,3.2078]
[1757336871611,3.2078,4350.0,4349.6,0.5615]
[1757336872112,0.253,4349.9,4349.5,0.2265]
[1757336872412,0.253,4349.8,4349.5,0.2265]
[1757336873110,0.253,4349.8,4349.2,3.2078]
[1757336874399,18.0,4349.7,4349.2,3.2078]
[1757336874599,0.3451,4349.6,4349.1,0.5615]
[1757336874798,18.0,4349.7,4349.1,0.5615]
[1757336875000,18.0,4349.7,4348.9,3.2078]
[1757336875001,0.3451,4349.6,4348.9,3.2078]
[1757336875205,0.253,4349.8,4348.6,0.5615]
[1757336875206,3.2078,4349.4,4348.6,0.5615]
[1757336875512,0.252,4349.3,4348.6,0.5615]
[1757336876207,17.452,4349.2,4349.0,0.2265]
[1757336876403,17.452,4349.2,4349.1,0.5615]
[1757336876710,3.2078,4351.6,4350.6,0.5615]
[1757336876914,3.2078,4352.1,4351.5,0.2265]
[1757336877115,0.253,4352.0,4351.6,0.5615]
[1757336877406,0.253,4352.0,4351.5,0.2265]
[1757336877613,20.4078,4352.1,4351.6,0.5615]
[1757336877908,3.2078,4352.1,4351.5,0.2265]
[1757336878210,0.252,4352.0,4351.5,0.2265]
[1757336878404,0.252,4352.0,4350.5,0.2265]
[1757336878405,3.2078,4351.6,4350.7,3.2078]
[1757336878604,0.252,4351.5,4350.6,0.5615]
[1757336879011,0.252,4351.4,4350.6,3.2078]
[1757336879210,3.2078,4351.6,4350.7,0.5615]
[1757336879406,0.252,4351.5,4350.7,0.5615]
[1757336879602,0.252,4351.4,4350.7,0.5615]
[1757336879811,0.252,4351.3,4350.7,0.5615]
[1757336880508,3.2078,4351.5,4350.7,0.5615]
[1757336880708,0.252,4351.4,4350.6,3.2078]
[1757336880915,3.2078,4351.0,4350.2,0.5615]
[1757336881115,17.2,4352.0,4350.2,0.5615]
[1757336881116,33.383,4350.9,4350.2,0.5615]
[1757336881321,0.252,4350.8,4350.2,0.5615]
[1757336881615,0.252,4350.7,4349.9,3.2078]
[1757336881814,0.252,4350.7,4350.1,0.5615]
[1757336882012,0.252,4350.6,4350.1,0.5615]
[1757336882218,31.77989211,4350.9,4349.9,3.2078]
[1757336882511,0.252,4350.8,4350.5,0.2265]
[1757336882707,0.252,4350.8,4350.0,0.788]
[1757336883711,0.252,4350.8,4350.0,0.2265]
[1757336883907,17.2,4350.7,4350.1,0.5615]
[1757336884310,0.252,4350.8,4350.1,0.5615]
[1757336885314,16.1,4350.7,4350.1,0.5615]
[1757336886107,17.33176443,4350.7,4350.1,0.5615]
[1757336886810,0.0871,4350.5,4349.6,0.5734]
[1757336887015,1.23176443,4350.3,4349.6,0.5734]
[1757336887325,0.07665654,4350.3,4349.6,0.5734]
[1757336887517,3.4588,4350.4,4349.6,0.5734]
[1757336888014,0.0871,4350.3,4349.6,0.5734]
[1757336888215,0.0871,4350.3,4349.4,3.7812]
[1757336888515,0.251,4350.2,4349.6,0.5734]
[1757336888712,0.251,4350.2,4349.2,0.5734]
[1757336889021,3.2949,4349.9,4349.2,0.5734]
[1757336889211,0.251,4349.8,4349.2,0.5734]
[1757336890412,0.251,4349.7,4349.0,0.7999]
[1757336890617,3.2078,4349.3,4348.5,0.7999]
[1757336890817,49.483,4349.2,4348.5,0.7999]
[1757336891320,49.5701,4349.2,4348.5,0.7999]
[1757336891520,0.1143,4349.1,4348.5,0.5734]
[1757336891824,0.0871,4348.7,4348.0,0.8068]
[1757336892010,3.2078,4348.3,4348.0,0.8068]
[1757336892212,3.2078,4348.3,4347.5,0.2334]
[1757336892213,0.251,4348.2,4347.5,0.8068]
[1757336892621,0.0871,4348.1,4347.2,3.2078]
[1757336893014,3.2078,4347.8,4347.2,3.2078]
[1757336893214,0.251,4347.7,4347.2,3.2078]
[1757336893418,32.06699211,4347.6,4347.2,3.2078]
[1757336894022,32.06699211,4347.6,4347.2,3.7812]
[1757336894218,32.06699211,4347.6,4347.3,0.5734]
[1757336894523,32.06699211,4347.6,4347.4,0.5734]
[1757336894720,32.06699211,4347.6,4347.2,3.2078]
[1757336894721,32.06699211,4347.6,4347.5,0.8068]
[1757336894921,32.31699211,4347.6,4347.5,0.8068]
[1757336895520,32.06699211,4347.6,4347.5,0.8068]
[1757336895721,32.31699211,4347.6,4347.5,0.8068]
[1757336896525,30.91188422,4347.6,4347.5,0.8068]
[1757336897019,31.16188422,4347.6,4347.5,0.8068]
[1757336898322,16.1,4348.2,4347.5,0.8068]
[1757336898524,0.1143,4349.1,4348.1,0.5734]
[1757336898525,3.2078,4348.8,4348.1,0.5734]
[1757336898821,0.25,4348.7,4348.1,0.5734]
[1757336899023,16.35,4348.7,4348.1,0.5734]
[1757336899225,16.35,4348.7,4348.5,0.2334]
[1757336899426,16.1,4348.7,4348.6,0.5734]
[1757336899625,3.2078,4348.8,4348.5,0.2334]
[1757336899932,0.25,4348.7,4348.6,0.5734]
[1757336900131,0.1143,4349.1,4349.0,0.2334]
[1757336900432,0.1143,4349.1,4349.0,0.8068]
[1757336900630,3.2078,4350.0,4349.6,0.5734]
[1757336900933,36.3518,4350.9,4350.0,0.8068]
[1757336901136,15.151,4350.8,4350.1,0.5734]
[1757336902028,36.3518,4350.9,4350.0,0.2334]
[1757336902029,0.251,4350.7,4350.6,0.5734]
[1757336902428,0.48875723,4350.7,4350.5,0.2334]
[1757336902627,0.251,4350.6,4350.5,0.2334]
[1757336903028,0.251,4350.6,4350.5,0.8068]
[1757336903227,35.68544934,4350.9,4350.6,0.5734]
[1757336903436,0.251,4350.8,4350.6,0.5734]
[1757336903634,0.251,4350.8,4350.5,0.2334]
[1757336903831,35.68544934,4350.9,4350.5,0.2334]
[1757336904034,0.251,4350.8,4350.5,0.2334]
[1757336904230,15.151,4350.8,4350.6,0.5734]
[1757336904732,0.251,4350.8,4350.6,0.5734]
[1757336905237,0.251,4350.8,4350.5,0.2334]
[1757336905435,0.251,4350.8,4350.6,0.5734]
[1757336905638,0.251,4350.7,4350.6,0.5734]
[1757336908338,0.1143,4350.6,4350.0,0.8068]
[1757336908544,0.25,4350.5,4350.0,0.2334]
[1757336908838,0.25,4350.4,4350.0,0.2334]
[1757336909043,15.15,4350.4,4350.0,0.2334]
[1757336909244,15.15,4350.4,4350.1,0.5734]
[1757336909547,15.15,4350.4,4350.0,0.2334]
[1757336910039,15.15,4350.4,4349.9,3.2078]
[1757336910244,0.1143,4350.3,4349.9,3.2078]
[1757336910445,14.9,4350.4,4350.1,0.5734]
[1757336910743,0.25,4350.3,4350.1,0.5734]
[1757336910939,0.25,4350.2,4350.1,0.5734]
[1757336913533,3.2078,4350.5,4350.0,0.2334]
[1757336913846,0.25,4350.4,4350.1,0.5734]
[1757336914046,14.9,4350.8,4350.1,0.5734]
[1757336914343,14.9,4350.8,4350.0,0.2334]
[1757336914344,0.25,4350.7,4350.6,0.5734]
[1757336914543,0.73529703,4350.7,4350.6,0.5734]
[1757336914738,0.25,4350.7,4350.5,0.2334]
[1757336915049,0.25,4350.7,4350.6,0.5734]
[1757336915544,0.1926,4350.6,4349.6,0.5843]
[1757336915733,3.662,4350.2,4349.5,0.2334]
[1757336915938,0.25,4350.1,4349.2,3.2078]
[1757336916739,0.5877,4350.0,4349.2,3.2078]
[1757336916940,0.2343,4350.0,4349.2,3.2078]
[1757336917146,0.5877,4349.9,4349.2,3.2078]
[1757336917339,0.25,4349.8,4349.2,3.2078]
[1757336917740,0.25,4349.7,4349.2,3.2078]
[1757336918138,0.25,4349.7,4349.3,0.5843]
[1757336918344,3.4578,4349.7,4348.8,0.5843]
[1757336918545,0.5877,4348.8,4348.0,0.2415]
[1757336918745,33.385,4348.7,4348.0,0.2415]
[1757336920049,3.2078,4348.4,4348.0,0.2415]
[1757336920351,0.5877,4348.2,4347.2,3.2078]
[1757336920650,3.2078,4347.9,4347.1,0.5843]
[1757336920946,0.25,4347.8,4347.1,0.5843]
[1757336921149,14.9,4347.7,4347.1,0.5843]
[1757336921549,14.9,4347.7,4347.0,0.2415]
[1757336921550,0.25,4347.6,4347.5,0.8258]
[1757336922546,0.25,4347.6,4347.5,0.5843]
[1757336923151,0.25,4347.6,4347.5,0.8258]
[1757336923451,3.2078,4348.2,4347.6,0.5843]
[1757336923746,0.25,4348.1,4347.6,0.5843]
[1757336923941,0.8377,4348.0,4347.6,0.5843]
[1757336924342,0.5877,4347.9,4347.5,0.2415]
[1757336924543,0.25,4348.0,4347.6,0.5843]
[1757336924746,0.25,4348.0,4347.0,0.2415]
[1757336924951,0.5877,4347.9,4347.1,0.5843]
[1757336925546,0.249,4347.8,4347.1,0.5843]
[1757336925756,2.30269211,4348.2,4347.6,0.5843]
[1757336925757,0.249,4347.7,4347.6,0.5843]
[1757336925951,2.30269211,4348.2,4348.0,0.2415]
[1757336926251,0.5877,4348.8,4348.1,0.5843]
[1757336926451,48.035,4348.7,4348.1,0.5843]
[1757336926848,47.36310292,4348.7,4348.5,0.2415]
[1757336927051,47.36310292,4348.7,4348.6,0.5843]
[1757336927351,47.61210292,4348.7,4348.6,0.5843]
[1757336927552,48.19980292,4348.7,4348.6,0.5843]
[1757336928754,48.19980292,4348.7,4348.1,0.5843]
[1757336928950,47.61210292,4348.7,4348.1,0.5843]
[1757336930052,0.249,4348.6,4348.0,0.2415]
[1757336930352,0.249,4348.6,4348.0,0.8258]
[1757336930951,46.20799503,4348.7,4348.1,0.5843]
[1757336931248,46.20799503,4348.7,4348.6,3.7921]
[1757336931249,31.30799503,4348.7,4348.6,3.7921]
[1757336931554,31.55699503,4348.7,4348.6,3.7921]
[1757336931948,31.55699503,4348.7,4348.6,7.7921]
[1757336932149,31.55699503,4348.7,4348.6,0.5843]
[1757336932348,31.55699503,4348.7,4347.0,0.8258]
[1757336932349,0.2338,4348.5,4347.0,0.8258]
[1757336932653,0.5877,4347.9,4346.9,0.5843]
[1757336932851,15.149,4347.8,4346.9,0.5843]
[1757336933054,0.249,4347.7,4346.9,0.5843]
[1757336933351,0.5877,4347.6,4346.9,0.5843]
[1757336933947,14.0,4347.5,4346.9,0.5843]
[1757336934147,0.249,4347.4,4346.9,0.5843]
[1757336934354,0.249,4347.4,4347.0,3.2078]
[1757336934943,0.5877,4347.3,4346.5,0.8258]
[1757336935653,0.249,4347.2,4346.5,0.8258]
[1757336935855,33.147,4347.1,4346.5,0.8258]
[1757336936159,31.99189211,4347.1,4347.0,0.2415]
[1757336936352,32.24089211,4347.1,4346.5,0.2415]
[1757336936554,32.24089211,4347.1,4346.5,0.8258]
[1757336936953,0.2343,4347.0,4346.3,3.2078]
[1757336937158,0.5877,4346.4,4346.3,3.2078]
[1757336937451,0.8367,4346.4,4346.3,3.2078]
[1757336937651,3.2078,4347.5,4346.3,7.43788]
[1757336937852,0.2343,4349.5,4347.5,0.2415]
[1757336937853,36.3568,4348.7,4347.5,0.2415]
[1757336938048,0.25,4348.6,4347.9,3.2078]
[1757336938251,0.25,4348.6,4348.0,0.2415]
[1757336938652,14.25,4348.6,4348.0,0.2415]
[1757336939053,0.25,4348.5,4348.0,0.8258]
[1757336939251,0.25,4348.5,4348.1,0.5843]
[1757336939252,0.5877,4348.4,4348.1,0.5843]
[1757336939450,0.5877,4348.4,4347.9,3.2078]
[1757336939648,0.4843,4348.5,4347.9,3.2078]
[1757336940355,0.5877,4348.4,4347.9,3.2078]
[1757336940556,0.4843,4348.5,4347.9,3.2078]
[1757336940949,0.5877,4348.4,4347.9,3.2078]
[1757336941154,0.5877,4348.4,4347.6,0.5843]
[1757336941363,0.5877,4348.4,4347.8,0.5843]
[1757336941561,0.249,4348.3,4347.8,0.5843]
[1757336941858,13.1,4348.6,4347.8,0.5843]
[1757336942053,0.249,4348.5,4347.8,0.5843]
[1757336943252,45.349,4348.7,4348.4,3.2078]
[1757336943253,33.149,4348.7,4348.4,3.2078]
[1757336943456,33.149,4348.7,4348.5,0.8258]
[1757336943457,0.249,4348.6,4348.5,0.8258]
[1757336943855,33.149,4348.7,4348.6,0.5843]
[1757336944052,33.398,4348.7,4348.6,0.5843]
[1757336944254,33.9857,4348.7,4348.0,0.5843]
[1757336945260,32.83059211,4348.7,4348.0,0.5843]
[1757336945456,34.06362433,4348.7,4348.0,0.5843]
[1757336945655,33.47592433,4348.7,4347.8,3.2078]
[1757336945851,0.248,4348.5,4347.8,3.2078]
[1757336946058,0.249,4348.4,4347.8,3.2078]
[1757336946256,0.654,4348.3,4347.8,3.2078]
[1757336946453,0.249,4348.2,4347.5,0.9058]
[1757336947358,0.654,4348.1,4347.5,0.6643]
[1757336947561,0.248,4348.0,4347.3,3.2078]
[1757336947760,0.249,4347.9,4347.3,3.2078]
[1757336948063,0.654,4347.4,4347.3,3.2078]
[1757336948256,0.249,4347.4,4347.3,3.8721]
[1757336948459,0.249,4347.4,4347.3,0.6643]
[1757336948657,0.248,4347.4,4347.3,0.6643]
[1757336948860,1.64566112,4348.4,4347.5,0.2463]
[1757336949059,0.248,4348.3,4347.6,0.6643]
[1757336949564,0.248,4348.3,4347.3,3.2078]
[1757336949760,1.89366112,4348.3,4347.2,0.6643]
[1757336949956,3.2078,4348.0,4347.5,0.2463]
[1757336950165,0.248,4347.9,4347.8,0.6643]
[1757336951155,12.2,4348.6,4347.8,0.6643]
[1757336951463,0.248,4348.5,4347.8,0.6643]
[1757336952358,11.548,4348.5,4347.8,0.6643]
[1757336953065,3.2078,4348.3,4347.8,0.6643]
[1757336953363,0.248,4348.2,4347.7,3.2078]
[1757336953552,3.2078,4348.3,4347.8,0.6643]
[1757336953553,0.248,4348.1,4347.8,0.6643]
[1757336953754,0.248,4348.1,4347.7,3.2078]
[1757336953755,0.5734,4348.0,4347.7,3.2078]
[1757336953952,0.248,4348.1,4347.7,3.2078]
[1757336954158,0.5734,4348.0,4347.3,0.6643]
[1757336954358,3.2078,4348.3,4347.3,0.6643]
[1757336954359,0.248,4347.9,4347.3,0.6643]
[1757336954560,11.3911,4348.5,4347.0,3.4541]
[1757336954561,1.64566112,4348.6,4348.1,0.6643]
[1757336954759,3.2078,4348.8,4348.6,0.6643]
[1757336955066,32.24289211,4348.7,4348.6,0.6643]
[1757336955653,32.24289211,4348.7,4348.5,0.2463]
[1757336956067,32.24289211,4348.7,4348.5,0.9106]
[1757336956267,43.54289211,4348.7,4348.1,3.2078]
[1757336957265,42.38778422,4348.7,4348.0,0.9106]
[1757336958268,3.2078,4348.2,4347.5,0.9106]
[1757336958468,0.249,4348.1,4347.5,0.9106]
[1757336958865,4.85346112,4348.2,4347.6,0.6643]
[1757336959067,0.248,4348.1,4348.0,0.9106]
[1757336959269,0.249,4348.1,4348.0,0.9106]
[1757336960466,0.248,4348.1,4348.0,0.9106]
[1757336961370,0.248,4348.1,4347.7,0.6643]
[1757336961371,0.249,4348.1,4347.7,0.6643]
[1757336961573,0.249,4348.1,4347.6,3.2078]
[1757336961871,0.249,4348.1,4347.5,0.2463]
[1757336962068,0.249,4348.1,4347.6,3.2078]
[1757336962564,0.249,4348.1,4347.7,0.6643]
[1757336962772,0.654,4347.6,4347.0,0.2463]
[1757336962969,0.248,4347.5,4347.0,0.2463]
[1757336963266,0.248,4347.5,4345.5,0.2463]
[1757336963267,0.248,4347.0,4345.5,0.2463]
[1757336963465,2.05269211,4346.3,4345.5,0.2463]
[1757336963660,0.249,4346.2,4345.9,3.2078]
[1757336964870,3.2078,4346.8,4346.1,0.6643]
[1757336965166,0.249,4346.7,4346.6,0.6643]
[1757336965371,0.248,4346.7,4346.6,0.6643]
[1757336966871,0.902,4346.7,4346.1,0.6643]
[1757336967166,0.654,4346.2,4345.6,0.6643]
[1757336967360,0.248,4346.1,4345.6,0.6643]
[1757336967771,0.654,4346.0,4345.4,0.6643]
[1757336968165,1.23658765,4345.9,4345.4,0.6643]
[1757336968369,0.654,4345.7,4345.4,0.6643]
[1757336968870,0.248,4345.8,4345.4,0.6643]
[1757336969073,3.2078,4345.6,4344.9,0.6643]
[1757336969369,1.48458765,4345.5,4344.9,0.6643]
[1757336969569,0.19647976,4345.5,4345.0,0.2463]
[1757336969769,0.248,4345.4,4345.1,0.6643]
[1757336970076,0.248,4345.3,4345.0,0.2463]
[1757336970369,33.154,4345.2,4345.1,0.6643]
[1757336970568,33.154,4345.2,4344.8,3.2078]
[1757336970768,33.154,4345.2,4345.0,0.6643]
[1757336970981,33.154,4345.2,4345.1,0.6643]
[1757336971271,33.403,4345.2,4345.1,0.6643]
[1757336971577,33.402,4345.2,4345.1,0.6643]
[1757336972573,32.24689211,4345.2,4345.1,0.6643]
[1757336972769,32.90089211,4345.2,4345.1,0.6643]
[1757336973877,32.90089211,4345.2,4344.5,0.9106]
[1757336974378,32.90089211,4345.2,4344.1,0.6643]
[1757336974379,0.654,4344.8,4344.1,0.6643]
[1757336974578,31.99889211,4345.2,4344.5,0.2463]
[1757336974773,0.248,4345.1,4344.6,0.6643]
[1757336974976,3.2078,4344.8,4344.6,0.6643]
[1757336975174,0.248,4344.7,4344.1,0.6643]
[1757336975476,0.248,4344.6,4344.1,0.6643]
[1757336975779,2.30069211,4344.8,4344.6,0.7302]
[1757336975980,0.248,4344.7,4344.6,0.7302]
[1757336976180,0.9295,4344.7,4344.6,0.7302]
[1757336976377,0.248,4344.7,4344.5,0.2841]
[1757336976677,0.248,4344.7,4344.6,0.7302]
[1757336976873,2.30069211,4344.8,4344.5,0.2841]
[1757336977175,0.248,4344.7,4344.6,0.7302]
[1757336977382,0.248,4344.7,4344.1,0.7302]
[1757336978576,0.248,4344.6,4344.0,0.2463]
[1757336978780,0.248,4344.6,4344.0,0.9765]